[Event "Early-Titled-Tuesday-Blitz-February-06-2024"]
[Site "Chess.com"]
[Date "2024.02.06"]
[Round "2"]
[White "PolandHussars"]
[Black "Drags95"]
[Result "1/2-1/2"]
[WhiteElo "2590"]
[BlackElo "2840"]
[TimeControl "180+1"]
[EndTime "8:18:14 PST"]
[Termination "Game drawn - insufficient material"]

1. e4 {[%clk 0:03:00.6]} 1... e5 {[%clk 0:02:58.7]} 2. Nc3 {[%clk 0:03:00.1]}
2... Nf6 {[%clk 0:02:58.4]} 3. g3 {[%clk 0:03:00.2]} 3... d5 {[%clk 0:02:58.3]}
4. exd5 {[%clk 0:03:01.1]} 4... Nxd5 {[%clk 0:02:58.9]} 5. Bg2 {[%clk
0:03:01.5]} 5... Nxc3 {[%clk 0:02:59.2]} 6. bxc3 {[%clk 0:03:02.2]} 6... Nc6
{[%clk 0:02:59.7]} 7. Ne2 {[%clk 0:03:02.5]} 7... Be6 {[%clk 0:02:58.9]} 8. O-O
{[%clk 0:02:59.4]} 8... Bd5 {[%clk 0:02:59.4]} 9. d3 {[%clk 0:02:58.9]} 9...
Bxg2 {[%clk 0:02:55.6]} 10. Kxg2 {[%clk 0:02:59.8]} 10... Qd5+ {[%clk
0:02:52.9]} 11. f3 {[%clk 0:02:59.9]} 11... h5 {[%clk 0:02:48.8]} 12. c4 {[%clk
0:02:59.8]} 12... Qd7 {[%clk 0:02:48.3]} 13. Be3 {[%clk 0:02:56.5]} 13... h4
{[%clk 0:02:46.8]} 14. Rh1 {[%clk 0:02:50.6]} 14... O-O-O {[%clk 0:02:41.7]} 15.
Rb1 {[%clk 0:02:46.7]} 15... f5 {[%clk 0:02:41.5]} 16. Qc1 {[%clk 0:02:40.6]}
16... Be7 {[%clk 0:02:37.4]} 17. Nc3 {[%clk 0:02:35]} 17... f4 {[%clk 0:02:14]}
18. Bf2 {[%clk 0:02:31.4]} 18... fxg3 {[%clk 0:02:06.5]} 19. hxg3 {[%clk
0:02:31]} 19... hxg3 {[%clk 0:02:07.3]} 20. Bxg3 {[%clk 0:02:28]} 20... Nd4
{[%clk 0:02:00.6]} 21. Qe3 {[%clk 0:02:21.1]} 21... Bf6 {[%clk 0:01:44.8]} 22.
Nd5 {[%clk 0:02:06.7]} 22... Qa4 {[%clk 0:01:35.8]} 23. c3 {[%clk 0:01:33.2]}
23... Nf5 {[%clk 0:01:16.5]} 24. Qf2 {[%clk 0:01:13.6]} 24... c6 {[%clk
0:01:04.5]} 25. Rxh8 {[%clk 0:01:09.7]} 25... Rxh8 {[%clk 0:01:03.6]} 26. Nb4
{[%clk 0:00:27]} 26... Bg5 {[%clk 0:00:28.6]} 27. Bxe5 {[%clk 0:00:18.7]} 27...
Be3 {[%clk 0:00:28]} 28. Qb2 {[%clk 0:00:17.4]} 28... Bb6 {[%clk 0:00:10.2]} 29.
c5 {[%clk 0:00:17.6]} 29... Bxc5 {[%clk 0:00:08.3]} 30. Nd5 {[%clk 0:00:18]}
30... b5 {[%clk 0:00:05.3]} 31. Nb4 {[%clk 0:00:17.3]} 31... Ne3+ {[%clk
0:00:03.7]} 32. Kg3 {[%clk 0:00:17.2]} 32... Kb7 {[%clk 0:00:04.3]} 33. d4
{[%clk 0:00:17.2]} 33... Nf5+ {[%clk 0:00:04.7]} 34. Kf4 {[%clk 0:00:17.6]}
34... Bxb4 {[%clk 0:00:05.6]} 35. Kxf5 {[%clk 0:00:18]} 35... Be7 {[%clk
0:00:04.9]} 36. d5 {[%clk 0:00:18.4]} 36... Rf8+ {[%clk 0:00:05.2]} 37. Ke6
{[%clk 0:00:18.7]} 37... Bc5 {[%clk 0:00:04.3]} 38. dxc6+ {[%clk 0:00:18.8]}
38... Kxc6 {[%clk 0:00:05.2]} 39. Qb3 {[%clk 0:00:18.9]} 39... Qc4+ {[%clk
0:00:02.8]} 40. Qxc4 {[%clk 0:00:18.6]} 40... bxc4 {[%clk 0:00:03.7]} 41. Bd4
{[%clk 0:00:18.6]} 41... Rxf3 {[%clk 0:00:03.3]} 42. Bxg7 {[%clk 0:00:18.1]}
42... Re3+ {[%clk 0:00:03.3]} 43. Kf5 {[%clk 0:00:18.4]} 43... Rd3 {[%clk
0:00:03.4]} 44. Re1 {[%clk 0:00:17.9]} 44... Rd2 {[%clk 0:00:03.5]} 45. Re6+
{[%clk 0:00:17.5]} 45... Bd6 {[%clk 0:00:03.9]} 46. Be5 {[%clk 0:00:16.8]} 46...
Kd7 {[%clk 0:00:03.6]} 47. Rxd6+ {[%clk 0:00:17]} 47... Rxd6 {[%clk 0:00:03.9]}
48. Bxd6 {[%clk 0:00:17.9]} 48... Kxd6 {[%clk 0:00:04.8]} 49. Ke4 {[%clk
0:00:18.5]} 49... Kc5 {[%clk 0:00:05.3]} 50. a4 {[%clk 0:00:18.6]} 50... Kb6
{[%clk 0:00:05]} 51. Kd5 {[%clk 0:00:18.3]} 51... Ka5 {[%clk 0:00:05.3]} 52.
Kxc4 {[%clk 0:00:18.7]} 52... Kxa4 {[%clk 0:00:06]} 53. Kd5 {[%clk 0:00:19.1]}
53... Kb3 {[%clk 0:00:05.7]} 54. c4 {[%clk 0:00:19.5]} 54... a5 {[%clk
0:00:06.6]} 55. c5 {[%clk 0:00:20.3]} 55... a4 {[%clk 0:00:07.5]} 56. c6 {[%clk
0:00:21.2]} 56... a3 {[%clk 0:00:08.4]} 57. c7 {[%clk 0:00:22]} 57... a2 {[%clk
0:00:09.3]} 58. c8=Q {[%clk 0:00:21.9]} 58... a1=Q {[%clk 0:00:10.2]} 59. Qc4+
{[%clk 0:00:22]} 59... Kb2 {[%clk 0:00:09.9]} 60. Qd4+ {[%clk 0:00:22.3]} 60...
Kb1 {[%clk 0:00:10.3]} 61. Qxa1+ {[%clk 0:00:23.2]} 61... Kxa1 {[%clk
0:00:10.9]} 1/2-1/2

[Event "Early-Titled-Tuesday-Blitz-February-06-2024"]
[Site "Chess.com"]
[Date "2024.02.06"]
[Round "2"]
[White "TrompeterImEther"]
[Black "CSB7"]
[Result "0-1"]
[WhiteElo "2537"]
[BlackElo "2746"]
[TimeControl "180+1"]
[EndTime "8:18:14 PST"]
[Termination "CSB7 won by resignation"]

1. e4 {[%clk 0:03:00.9]} 1... c5 {[%clk 0:02:59.6]} 2. Nf3 {[%clk 0:03:01]} 2...
d6 {[%clk 0:02:59.3]} 3. d4 {[%clk 0:03:01.2]} 3... cxd4 {[%clk 0:03:00.2]} 4.
Nxd4 {[%clk 0:03:01.9]} 4... Nf6 {[%clk 0:03:00.4]} 5. Nc3 {[%clk 0:03:02.2]}
5... Nc6 {[%clk 0:03:00.1]} 6. Bc4 {[%clk 0:02:59.6]} 6... e6 {[%clk 0:02:58.9]}
7. Be3 {[%clk 0:02:58]} 7... Bd7 {[%clk 0:02:55.4]} 8. Qe2 {[%clk 0:02:57.7]}
8... a6 {[%clk 0:02:46.7]} 9. O-O-O {[%clk 0:02:57.2]} 9... Na5 {[%clk
0:02:44.2]} 10. Bd3 {[%clk 0:02:55.7]} 10... Rc8 {[%clk 0:02:42.6]} 11. Kb1
{[%clk 0:02:52.3]} 11... b5 {[%clk 0:02:14.3]} 12. a3 {[%clk 0:02:32.3]} 12...
Rxc3 {[%clk 0:02:02.9]} 13. bxc3 {[%clk 0:02:30.2]} 13... Qc7 {[%clk 0:01:59.5]}
14. Nb3 {[%clk 0:02:27.3]} 14... Nc4 {[%clk 0:01:55.1]} 15. Bc1 {[%clk
0:02:25.5]} 15... d5 {[%clk 0:01:36.2]} 16. f3 {[%clk 0:01:41.3]} 16... Nxa3+
{[%clk 0:01:24.3]} 17. Bxa3 {[%clk 0:01:38.7]} 17... Bxa3 {[%clk 0:01:25.2]} 18.
Qd2 {[%clk 0:01:37.9]} 18... O-O {[%clk 0:01:19.7]} 19. g4 {[%clk 0:01:21.5]}
19... Bc6 {[%clk 0:01:03.1]} 20. g5 {[%clk 0:01:08.9]} 20... Nd7 {[%clk
0:01:03.5]} 21. Rhe1 {[%clk 0:00:53.4]} 21... Nb6 {[%clk 0:00:56.1]} 22. h4
{[%clk 0:00:45.9]} 22... Ba8 {[%clk 0:00:44.7]} 23. Re3 {[%clk 0:00:34.2]} 23...
Nc4 {[%clk 0:00:39.6]} 24. Qe1 {[%clk 0:00:17]} 24... Nxe3 {[%clk 0:00:38.5]}
25. Qxe3 {[%clk 0:00:17.9]} 25... Qxc3 {[%clk 0:00:36.4]} 26. Qd4 {[%clk
0:00:18.1]} 26... Qxd4 {[%clk 0:00:35.6]} 27. Nxd4 {[%clk 0:00:19]} 27... dxe4
{[%clk 0:00:33.9]} 28. fxe4 {[%clk 0:00:18.6]} 28... Rd8 {[%clk 0:00:33.1]} 29.
e5 {[%clk 0:00:14.5]} 29... Rxd4 {[%clk 0:00:16.3]} 30. Bxh7+ {[%clk 0:00:14.5]}
30... Kxh7 {[%clk 0:00:17.2]} 31. Rxd4 {[%clk 0:00:14.8]} 31... Bd5 {[%clk
0:00:17.4]} 32. h5 {[%clk 0:00:12.8]} 32... Be7 {[%clk 0:00:16.2]} 33. Rf4
{[%clk 0:00:12.6]} 33... Bxg5 {[%clk 0:00:10.1]} 34. Rxf7 {[%clk 0:00:12.5]}
34... Kh6 {[%clk 0:00:10.1]} 35. Ra7 {[%clk 0:00:12.5]} 35... Kxh5 {[%clk
0:00:06.9]} 36. Rxg7 {[%clk 0:00:12.1]} 36... a5 {[%clk 0:00:06.2]} 37. Kb2
{[%clk 0:00:06.1]} 37... Kg4 {[%clk 0:00:05.8]} 38. Kc3 {[%clk 0:00:06.2]} 38...
Kf5 {[%clk 0:00:05]} 39. Kd4 {[%clk 0:00:06.6]} 39... a4 {[%clk 0:00:04.6]} 40.
Rf7+ {[%clk 0:00:06.6]} 40... Kg6 {[%clk 0:00:04.4]} 41. Ra7 {[%clk 0:00:07.4]}
41... Bc4 {[%clk 0:00:04.5]} 42. Rc7 {[%clk 0:00:03.9]} 42... Bh4 {[%clk
0:00:04.8]} 43. Kc5 {[%clk 0:00:03.9]} 43... Kf5 {[%clk 0:00:04]} 44. Kd6 {[%clk
0:00:04.3]} 44... Bg3 {[%clk 0:00:04.5]} 45. Rf7+ {[%clk 0:00:02.9]} 45... Ke4
{[%clk 0:00:04.7]} 46. Ra7 {[%clk 0:00:03.8]} 46... Bxe5+ {[%clk 0:00:04.7]} 47.
Ke7 {[%clk 0:00:04.6]} 47... Bd4 {[%clk 0:00:04.6]} 48. Ra6 {[%clk 0:00:04.8]}
48... e5 {[%clk 0:00:05.1]} 49. Kf6 {[%clk 0:00:04.7]} 49... Ke3 {[%clk
0:00:05.7]} 50. Kf5 {[%clk 0:00:05.6]} 50... Kd2 {[%clk 0:00:06]} 51. Ke4 {[%clk
0:00:05.8]} 51... Kc3 {[%clk 0:00:06.5]} 0-1

[Event "Early-Titled-Tuesday-Blitz-February-06-2024"]
[Site "Chess.com"]
[Date "2024.02.06"]
[Round "2"]
[White "ploxoi"]
[Black "Chemim21"]
[Result "0-1"]
[WhiteElo "2455"]
[BlackElo "2230"]
[TimeControl "180+1"]
[EndTime "8:18:14 PST"]
[Termination "Chemim21 won by resignation"]

1. d4 {[%clk 0:03:00.9]} 1... d5 {[%clk 0:02:58.9]} 2. c4 {[%clk 0:03:01.2]}
2... dxc4 {[%clk 0:02:59]} 3. e4 {[%clk 0:03:01.1]} 3... Nf6 {[%clk 0:02:57.4]}
4. e5 {[%clk 0:03:00.8]} 4... Nd5 {[%clk 0:02:57.5]} 5. Bxc4 {[%clk 0:03:01.5]}
5... Nb6 {[%clk 0:02:57.4]} 6. Bb3 {[%clk 0:03:01.5]} 6... Nc6 {[%clk
0:02:54.9]} 7. Ne2 {[%clk 0:03:01.6]} 7... Bg4 {[%clk 0:02:43]} 8. Nbc3 {[%clk
0:02:53.4]} 8... e6 {[%clk 0:02:41.1]} 9. O-O {[%clk 0:02:51.9]} 9... Qd7 {[%clk
0:02:29.1]} 10. f3 {[%clk 0:02:52]} 10... Bh5 {[%clk 0:02:28.1]} 11. Be3 {[%clk
0:02:46.9]} 11... O-O-O {[%clk 0:02:24]} 12. Qc1 {[%clk 0:02:47.1]} 12... Na5
{[%clk 0:02:14.7]} 13. Bc2 {[%clk 0:02:43.2]} 13... Nac4 {[%clk 0:02:12.3]} 14.
Bf2 {[%clk 0:02:42.3]} 14... Nd5 {[%clk 0:01:58.7]} 15. Ne4 {[%clk 0:02:33]}
15... Bg6 {[%clk 0:01:51.5]} 16. Bb3 {[%clk 0:02:28.3]} 16... Ncb6 {[%clk
0:01:47.2]} 17. a3 {[%clk 0:02:26.3]} 17... Kb8 {[%clk 0:01:46.6]} 18. Qd2
{[%clk 0:02:14.7]} 18... Be7 {[%clk 0:01:46.2]} 19. Rfc1 {[%clk 0:02:13.3]}
19... h6 {[%clk 0:01:37]} 20. Nc5 {[%clk 0:02:05.6]} 20... Qb5 {[%clk
0:01:25.5]} 21. a4 {[%clk 0:01:46.6]} 21... Qb4 {[%clk 0:01:18.2]} 22. Qxb4
{[%clk 0:01:28.1]} 22... Nxb4 {[%clk 0:01:16.9]} 23. Nf4 {[%clk 0:01:27.1]}
23... Bh7 {[%clk 0:01:08.5]} 24. a5 {[%clk 0:01:26.6]} 24... N6d5 {[%clk
0:01:07.3]} 25. Nxd5 {[%clk 0:01:26.7]} 25... Nxd5 {[%clk 0:01:02.9]} 26. Ra4
{[%clk 0:01:17.7]} 26... Nf4 {[%clk 0:00:59.7]} 27. Bd1 {[%clk 0:00:31.9]} 27...
Bxc5 {[%clk 0:00:56.9]} 28. Rxc5 {[%clk 0:00:32.8]} 28... Nd3 {[%clk 0:00:54.4]}
29. Rb5 {[%clk 0:00:26.2]} 29... a6 {[%clk 0:00:44.4]} 30. Rb3 {[%clk
0:00:22.4]} 30... c5 {[%clk 0:00:41.1]} 31. Rc4 {[%clk 0:00:12.7]} 31... Nxf2
{[%clk 0:00:39.4]} 32. Kxf2 {[%clk 0:00:12.7]} 32... cxd4 {[%clk 0:00:38.8]} 33.
Rcb4 {[%clk 0:00:11.5]} 33... Rd7 {[%clk 0:00:37.8]} 34. Ke1 {[%clk 0:00:11.2]}
34... Rc8 {[%clk 0:00:34]} 35. Kd2 {[%clk 0:00:11.2]} 35... Rcc7 {[%clk
0:00:26.5]} 36. f4 {[%clk 0:00:11.5]} 36... Rd5 {[%clk 0:00:26.1]} 37. Bf3
{[%clk 0:00:10.7]} 37... Rdd7 {[%clk 0:00:18.7]} 38. g3 {[%clk 0:00:11]} 38...
Bf5 {[%clk 0:00:17.2]} 39. Rb6 {[%clk 0:00:10.9]} 39... Bb1 {[%clk 0:00:16.3]}
40. R3b4 {[%clk 0:00:11]} 40... Ka7 {[%clk 0:00:14.7]} 41. h4 {[%clk 0:00:09.9]}
41... d3 {[%clk 0:00:14.7]} 42. Be4 {[%clk 0:00:09.6]} 42... Rc2+ {[%clk
0:00:12.7]} 43. Kd1 {[%clk 0:00:09.2]} 43... Rcc7 {[%clk 0:00:06.9]} 44. Kd2
{[%clk 0:00:09.3]} 44... Rc2+ {[%clk 0:00:06]} 45. Kd1 {[%clk 0:00:09.9]} 45...
Rcc7 {[%clk 0:00:05.9]} 46. h5 {[%clk 0:00:10.6]} 46... d2 {[%clk 0:00:03.8]}
47. Bxb1 {[%clk 0:00:09.6]} 47... Rc1+ {[%clk 0:00:03.1]} 0-1

[Event "Early-Titled-Tuesday-Blitz-February-06-2024"]
[Site "Chess.com"]
[Date "2024.02.06"]
[Round "2"]
[White "MikaelyanArman"]
[Black "TangerineandLemon25"]
[Result "0-1"]
[WhiteElo "2882"]
[BlackElo "2624"]
[TimeControl "180+1"]
[EndTime "8:18:15 PST"]
[Termination "TangerineandLemon25 won on time"]

1. d4 {[%clk 0:03:00.9]} 1... d5 {[%clk 0:02:52.4]} 2. c4 {[%clk 0:02:59.8]}
2... e6 {[%clk 0:02:52.2]} 3. Nf3 {[%clk 0:03:00.3]} 3... a6 {[%clk 0:02:52.6]}
4. e3 {[%clk 0:02:58.8]} 4... Nf6 {[%clk 0:02:52.1]} 5. b3 {[%clk 0:02:57.1]}
5... Be7 {[%clk 0:02:52.4]} 6. Bb2 {[%clk 0:02:57.4]} 6... O-O {[%clk 0:02:53]}
7. Nbd2 {[%clk 0:02:57.9]} 7... b6 {[%clk 0:02:53.5]} 8. cxd5 {[%clk 0:02:50.4]}
8... exd5 {[%clk 0:02:52.7]} 9. Bd3 {[%clk 0:02:48.5]} 9... c5 {[%clk
0:02:52.1]} 10. O-O {[%clk 0:02:47.8]} 10... Bb7 {[%clk 0:02:51.9]} 11. Rc1
{[%clk 0:02:41.8]} 11... Nbd7 {[%clk 0:02:49.5]} 12. Ne5 {[%clk 0:02:35.6]}
12... Rc8 {[%clk 0:02:48.3]} 13. f4 {[%clk 0:02:31.5]} 13... b5 {[%clk
0:02:47.4]} 14. Qf3 {[%clk 0:02:13.3]} 14... c4 {[%clk 0:02:42.6]} 15. bxc4
{[%clk 0:02:12.8]} 15... bxc4 {[%clk 0:02:41.4]} 16. Bf5 {[%clk 0:02:01]} 16...
Bb4 {[%clk 0:02:39.4]} 17. Ndxc4 {[%clk 0:01:42.4]} 17... dxc4 {[%clk
0:02:21.5]} 18. Qxb7 {[%clk 0:01:43.3]} 18... Bd2 {[%clk 0:02:19.8]} 19. Nxd7
{[%clk 0:01:29.4]} 19... Bxe3+ {[%clk 0:02:13.7]} 20. Kh1 {[%clk 0:01:29.4]}
20... Bxc1 {[%clk 0:02:13]} 21. Rxc1 {[%clk 0:01:16.5]} 21... Nxd7 {[%clk
0:02:05.7]} 22. Qxd7 {[%clk 0:01:17.4]} 22... Qa5 {[%clk 0:02:02]} 23. Bc2
{[%clk 0:00:35.1]} 23... Rb8 {[%clk 0:01:55.8]} 24. Qh3 {[%clk 0:00:33]} 24...
h6 {[%clk 0:01:42.6]} 25. Bc3 {[%clk 0:00:33.4]} 25... Qa3 {[%clk 0:01:41.8]}
26. Rf1 {[%clk 0:00:31.3]} 26... Qxa2 {[%clk 0:01:39.9]} 27. Be4 {[%clk
0:00:12.9]} 27... Rfe8 {[%clk 0:01:30.5]} 28. Qf3 {[%clk 0:00:08.4]} 28... Rb3
{[%clk 0:01:18.6]} 29. Bc6 {[%clk 0:00:06.7]} 29... Rc8 {[%clk 0:01:17.1]} 30.
d5 {[%clk 0:00:06.3]} 30... Qa3 {[%clk 0:01:16.1]} 31. Qg4 {[%clk 0:00:05.5]}
31... Rxc3 {[%clk 0:01:12.2]} 32. Qxc8+ {[%clk 0:00:05.7]} 32... Kh7 {[%clk
0:01:12.8]} 33. Qf5+ {[%clk 0:00:06.3]} 33... Kg8 {[%clk 0:01:13.2]} 34. Qc8+
{[%clk 0:00:06.5]} 34... Kh7 {[%clk 0:01:13.1]} 35. Qf5+ {[%clk 0:00:07.2]}
35... Kg8 {[%clk 0:01:13.5]} 36. Qe4 {[%clk 0:00:06.4]} 36... Rc1 {[%clk
0:00:57.6]} 37. Qe8+ {[%clk 0:00:06.6]} 37... Kh7 {[%clk 0:00:57]} 38. Qe4+
{[%clk 0:00:07.3]} 38... Kh8 {[%clk 0:00:46.4]} 39. Qe2 {[%clk 0:00:07.9]} 39...
Qb2 {[%clk 0:00:43.7]} 40. Qf3 {[%clk 0:00:07]} 40... Rc3 {[%clk 0:00:41.7]} 41.
Qg4 {[%clk 0:00:05.9]} 41... Rc1 {[%clk 0:00:38]} 42. Qf3 {[%clk 0:00:06.3]}
42... Rc3 {[%clk 0:00:38]} 43. Qd1 {[%clk 0:00:04.7]} 43... Rd3 {[%clk
0:00:26.8]} 44. Qe1 {[%clk 0:00:05.2]} 44... Qd4 {[%clk 0:00:18.8]} 45. d6
{[%clk 0:00:05.2]} 45... Re3 {[%clk 0:00:06.5]} 46. Qd1 {[%clk 0:00:04.3]} 46...
Rd3 {[%clk 0:00:06.2]} 47. Qe1 {[%clk 0:00:03.8]} 47... Re3 {[%clk 0:00:06.1]}
48. Qf2 {[%clk 0:00:02.7]} 48... c3 {[%clk 0:00:06.4]} 49. d7 {[%clk 0:00:03.2]}
49... Rd3 {[%clk 0:00:02.9]} 50. Qxd4 {[%clk 0:00:02.9]} 50... Rxd4 {[%clk
0:00:03.8]} 51. h3 {[%clk 0:00:01.5]} 51... c2 {[%clk 0:00:04.2]} 52. Kh2 {[%clk
0:00:01.1]} 52... Rd1 {[%clk 0:00:04.7]} 0-1

[Event "Early-Titled-Tuesday-Blitz-February-06-2024"]
[Site "Chess.com"]
[Date "2024.02.06"]
[Round "2"]
[White "Payyappat"]
[Black "IngOscarArdila"]
[Result "1-0"]
[WhiteElo "2459"]
[BlackElo "2193"]
[TimeControl "180+1"]
[EndTime "8:18:17 PST"]
[Termination "Payyappat won by checkmate"]

1. e4 {[%clk 0:03:00.9]} 1... e5 {[%clk 0:02:59.6]} 2. Nf3 {[%clk 0:03:00.3]}
2... Nf6 {[%clk 0:03:00.2]} 3. Nxe5 {[%clk 0:02:59]} 3... d6 {[%clk 0:03:00.2]}
4. Nf3 {[%clk 0:02:59.2]} 4... Nxe4 {[%clk 0:03:00.6]} 5. Nc3 {[%clk 0:02:59.8]}
5... Nxc3 {[%clk 0:03:00.9]} 6. dxc3 {[%clk 0:03:00.7]} 6... Be7 {[%clk
0:03:01.7]} 7. Bd3 {[%clk 0:03:00.5]} 7... O-O {[%clk 0:03:02.6]} 8. Bf4 {[%clk
0:02:58.6]} 8... Nd7 {[%clk 0:03:02.4]} 9. Qd2 {[%clk 0:02:57.6]} 9... Nf6
{[%clk 0:03:02.7]} 10. O-O-O {[%clk 0:02:57.7]} 10... c5 {[%clk 0:03:03.1]} 11.
h4 {[%clk 0:02:56.8]} 11... b5 {[%clk 0:03:02.3]} 12. h5 {[%clk 0:02:55.7]}
12... Qa5 {[%clk 0:03:00.9]} 13. a3 {[%clk 0:02:49.2]} 13... c4 {[%clk
0:02:56.9]} 14. Be2 {[%clk 0:02:48.4]} 14... d5 {[%clk 0:02:52.3]} 15. Be5
{[%clk 0:02:23.9]} 15... Bb7 {[%clk 0:02:50.1]} 16. g4 {[%clk 0:02:18.7]} 16...
Ne4 {[%clk 0:02:38]} 17. Qe3 {[%clk 0:02:07.6]} 17... Qb6 {[%clk 0:02:36.4]} 18.
Bd4 {[%clk 0:02:03.9]} 18... Bc5 {[%clk 0:02:36.5]} 19. Ne5 {[%clk 0:02:00.6]}
19... Bxd4 {[%clk 0:02:31.4]} 20. cxd4 {[%clk 0:01:41.7]} 20... Rfe8 {[%clk
0:02:11.9]} 21. c3 {[%clk 0:01:27.3]} 21... a5 {[%clk 0:02:10]} 22. Qf4 {[%clk
0:01:21.9]} 22... f6 {[%clk 0:02:03.8]} 23. Ng6 {[%clk 0:00:48]} 23... Qd6
{[%clk 0:02:02.7]} 24. Qf5 {[%clk 0:00:17.2]} 24... Bc8 {[%clk 0:02:02.2]} 25.
Qf3 {[%clk 0:00:12.3]} 25... Ng5 {[%clk 0:01:45.1]} 26. Qf4 {[%clk 0:00:11.9]}
26... Ne4 {[%clk 0:01:20.8]} 27. Qxd6 {[%clk 0:00:07.1]} 27... Nxd6 {[%clk
0:01:20.8]} 28. Nf4 {[%clk 0:00:07.8]} 28... Re4 {[%clk 0:01:07.7]} 29. Bf3
{[%clk 0:00:07.9]} 29... Rxf4 {[%clk 0:00:46.3]} 30. Bxd5+ {[%clk 0:00:08.8]}
30... Kf8 {[%clk 0:00:46.6]} 31. Bxa8 {[%clk 0:00:09.7]} 31... Bxg4 {[%clk
0:00:46.9]} 32. Rdf1 {[%clk 0:00:09.5]} 32... Be2 {[%clk 0:00:46.3]} 33. Re1
{[%clk 0:00:09.5]} 33... Bd3 {[%clk 0:00:45.8]} 34. f3 {[%clk 0:00:09.5]} 34...
b4 {[%clk 0:00:44.6]} 35. axb4 {[%clk 0:00:08.6]} 35... axb4 {[%clk 0:00:44.6]}
36. Re3 {[%clk 0:00:09]} 36... bxc3 {[%clk 0:00:40.9]} 37. bxc3 {[%clk
0:00:09.9]} 37... Rf5 {[%clk 0:00:25.2]} 38. d5 {[%clk 0:00:09.5]} 38... Rg5
{[%clk 0:00:15.7]} 39. Kb2 {[%clk 0:00:08.5]} 39... Rg2+ {[%clk 0:00:15.2]} 40.
Ka3 {[%clk 0:00:08.6]} 40... Rc2 {[%clk 0:00:14.9]} 41. Kb4 {[%clk 0:00:08.6]}
41... Ra2 {[%clk 0:00:12.7]} 42. Bc6 {[%clk 0:00:08.4]} 42... Nf5 {[%clk
0:00:06.4]} 43. Re8+ {[%clk 0:00:06.7]} 43... Kf7 {[%clk 0:00:06.9]} 44. Rhe1
{[%clk 0:00:06.6]} 44... g6 {[%clk 0:00:05.7]} 45. hxg6+ {[%clk 0:00:06.4]}
45... hxg6 {[%clk 0:00:05.9]} 46. Rh8 {[%clk 0:00:06.6]} 46... Kg7 {[%clk
0:00:05.9]} 47. Ree8 {[%clk 0:00:06]} 47... Rb2+ {[%clk 0:00:01.5]} 48. Kc5
{[%clk 0:00:06.1]} 48... g5 {[%clk 0:00:02.3]} 49. Bd7 {[%clk 0:00:06.1]} 49...
Ne3 {[%clk 0:00:01.5]} 50. Reg8+ {[%clk 0:00:06.1]} 50... Kf7 {[%clk 0:00:01.8]}
51. Be6+ {[%clk 0:00:07]} 51... Ke7 {[%clk 0:00:02.1]} 52. Rg7# {[%clk
0:00:07.4]} 1-0

[Event "Early-Titled-Tuesday-Blitz-February-06-2024"]
[Site "Chess.com"]
[Date "2024.02.06"]
[Round "2"]
[White "kpio91"]
[Black "Artyom_ChessMate"]
[Result "1-0"]
[WhiteElo "2824"]
[BlackElo "2568"]
[TimeControl "180+1"]
[EndTime "8:18:18 PST"]
[Termination "kpio91 won by resignation"]

1. e4 {[%clk 0:03:00.9]} 1... c5 {[%clk 0:02:59.9]} 2. Nc3 {[%clk 0:03:00]} 2...
d6 {[%clk 0:02:59.2]} 3. Bb5+ {[%clk 0:02:59.8]} 3... Bd7 {[%clk 0:02:59.2]} 4.
a4 {[%clk 0:03:00.1]} 4... Nf6 {[%clk 0:02:58.3]} 5. f4 {[%clk 0:02:57.6]} 5...
a6 {[%clk 0:02:58.5]} 6. Bxd7+ {[%clk 0:02:56.6]} 6... Qxd7 {[%clk 0:02:59.2]}
7. Nf3 {[%clk 0:02:57.1]} 7... g6 {[%clk 0:02:59.7]} 8. O-O {[%clk 0:02:56.8]}
8... Bg7 {[%clk 0:03:00.3]} 9. d3 {[%clk 0:02:57]} 9... O-O {[%clk 0:03:00.7]}
10. Qe1 {[%clk 0:02:56.6]} 10... Nc6 {[%clk 0:03:01.3]} 11. f5 {[%clk
0:02:43.6]} 11... Nd4 {[%clk 0:03:01.1]} 12. Nxd4 {[%clk 0:02:38]} 12... cxd4
{[%clk 0:03:02]} 13. Ne2 {[%clk 0:02:38.5]} 13... d5 {[%clk 0:02:50]} 14. e5
{[%clk 0:02:18.1]} 14... Ng4 {[%clk 0:02:49.1]} 15. Qh4 {[%clk 0:02:17.9]} 15...
Nxe5 {[%clk 0:02:46.5]} 16. Bh6 {[%clk 0:02:05.1]} 16... Rac8 {[%clk 0:02:44.9]}
17. Bxg7 {[%clk 0:02:01.8]} 17... Kxg7 {[%clk 0:02:44.9]} 18. f6+ {[%clk
0:02:02.5]} 18... Kg8 {[%clk 0:02:43]} 19. Nxd4 {[%clk 0:01:45.6]} 19... exf6
{[%clk 0:02:42.2]} 20. Rxf6 {[%clk 0:01:38.1]} 20... Qg4 {[%clk 0:02:40.1]} 21.
Qxg4 {[%clk 0:01:31.4]} 21... Nxg4 {[%clk 0:02:41]} 22. Rb6 {[%clk 0:01:31.9]}
22... Rc7 {[%clk 0:02:39.8]} 23. Re1 {[%clk 0:01:30]} 23... Kg7 {[%clk
0:02:34.7]} 24. h3 {[%clk 0:01:28.4]} 24... Nf6 {[%clk 0:02:34.5]} 25. Rf1
{[%clk 0:01:17.8]} 25... Nd7 {[%clk 0:02:17]} 26. Rd6 {[%clk 0:01:17.2]} 26...
Nc5 {[%clk 0:02:15.9]} 27. b3 {[%clk 0:01:08.8]} 27... Rd7 {[%clk 0:02:16.2]}
28. Rff6 {[%clk 0:00:57.7]} 28... Rfd8 {[%clk 0:02:12.3]} 29. Rxd7 {[%clk
0:00:53.8]} 29... Rxd7 {[%clk 0:02:13.2]} 30. Rf3 {[%clk 0:00:44.2]} 30... Ne6
{[%clk 0:02:12.1]} 31. Nxe6+ {[%clk 0:00:29.5]} 31... fxe6 {[%clk 0:02:13]} 32.
Kf2 {[%clk 0:00:29.8]} 32... Rc7 {[%clk 0:02:13]} 33. c4 {[%clk 0:00:29.7]}
33... dxc4 {[%clk 0:02:10.2]} 34. dxc4 {[%clk 0:00:29]} 34... b5 {[%clk
0:02:08.4]} 35. Rc3 {[%clk 0:00:23.9]} 35... Kf6 {[%clk 0:01:56.9]} 36. Ke3
{[%clk 0:00:21.5]} 36... Ke5 {[%clk 0:01:56.7]} 37. Kd3 {[%clk 0:00:20.6]} 37...
bxa4 {[%clk 0:01:57.1]} 38. bxa4 {[%clk 0:00:20.5]} 38... Rd7+ {[%clk
0:01:57.6]} 39. Ke3 {[%clk 0:00:20]} 39... Rb7 {[%clk 0:01:54.2]} 40. g4 {[%clk
0:00:17.1]} 40... Rb6 {[%clk 0:01:53.7]} 41. h4 {[%clk 0:00:14]} 41... Rb4
{[%clk 0:01:45.4]} 42. c5 {[%clk 0:00:09.5]} 42... Rb7 {[%clk 0:01:41.4]} 43.
Kd3 {[%clk 0:00:07]} 43... Kd5 {[%clk 0:01:39.9]} 44. Ke3 {[%clk 0:00:07.2]}
44... Rc7 {[%clk 0:01:35.1]} 45. Kf4 {[%clk 0:00:07.2]} 45... h6 {[%clk
0:01:34.1]} 46. Rd3+ {[%clk 0:00:05.8]} 46... Kc4 {[%clk 0:01:22.2]} 47. Rd6
{[%clk 0:00:05.4]} 47... Rxc5 {[%clk 0:01:22.5]} 48. Rxa6 {[%clk 0:00:04.8]}
48... g5+ {[%clk 0:01:23]} 49. hxg5 {[%clk 0:00:04.6]} 49... hxg5+ {[%clk
0:01:23.9]} 50. Ke4 {[%clk 0:00:04.4]} 50... e5 {[%clk 0:01:02.2]} 51. Re6
{[%clk 0:00:04.8]} 51... Ra5 {[%clk 0:00:47]} 52. Rxe5 {[%clk 0:00:05.1]} 52...
Rxa4 {[%clk 0:00:47.6]} 53. Kf5 {[%clk 0:00:05.5]} 53... Ra6 {[%clk 0:00:41.7]}
54. Kxg5 {[%clk 0:00:04.9]} 54... Kd4 {[%clk 0:00:42.2]} 55. Kf5 {[%clk
0:00:04.9]} 55... Ra8 {[%clk 0:00:37.8]} 56. Re6 {[%clk 0:00:04]} 56... Rf8+
{[%clk 0:00:38.1]} 57. Rf6 {[%clk 0:00:04.1]} 57... Rg8 {[%clk 0:00:38.2]} 58.
g5 {[%clk 0:00:04.6]} 58... Kd5 {[%clk 0:00:38.9]} 59. g6 {[%clk 0:00:05.1]}
59... Kd4 {[%clk 0:00:31.9]} 60. Rf7 {[%clk 0:00:04.4]} 60... Kd5 {[%clk
0:00:32.3]} 61. g7 {[%clk 0:00:04.8]} 61... Kd6 {[%clk 0:00:32.7]} 62. Kf6
{[%clk 0:00:05.2]} 1-0